[Event "Championnat d'Europe de Blitz"]
[Date "2024.12.09"]
[White "Livaic, Leon"]
[Black "Alienkin, Aleksander"]
[WhiteElo "2560"]
[BlackElo "2337"]
[Round "5.28"]
[Result "1-0"]
[TimeControl "180+2"]

1. d4 {[%clk 00:03:02]} e6 {[%emt 00:00:02] [%clk 00:03:03]} 2. Nf3 {[%emt
00:00:02] [%clk 00:03:01]} Nf6 {[%emt 00:00:03] [%clk 00:03:02]} 3. c4 {[%emt
00:00:01] [%clk 00:03:02]} Bb4+ {[%emt 00:00:04] [%clk 00:03:00]} 4. Nbd2 {[%emt
00:00:02] [%clk 00:03:01]} b6 {[%emt 00:00:06] [%clk 00:02:57]} 5. a3 {[%emt
00:00:03] [%clk 00:02:59]} Bxd2+ {[%emt 00:00:04] [%clk 00:02:54]} 6. Qxd2
{[%emt 00:00:03] [%clk 00:02:59]} Bb7 {[%emt 00:00:02] [%clk 00:02:54]} 7. e3
{[%emt 00:00:03] [%clk 00:02:58]} O-O {[%emt 00:00:03] [%clk 00:02:53]} 8. Be2
{[%emt 00:00:02] [%clk 00:02:58]} Ne4 {[%emt 00:00:01] [%clk 00:02:53]} 9. Qc2
{[%emt 00:00:02] [%clk 00:02:59]} d6 {[%emt 00:00:03] [%clk 00:02:52]} 10. O-O
{[%emt 00:00:04] [%clk 00:02:57]} f5 {[%emt 00:00:05] [%clk 00:02:49]} 11. b4
{[%emt 00:00:04] [%clk 00:02:56]} Nd7 {[%emt 00:00:02] [%clk 00:02:48]} 12. Bb2
{[%emt 00:00:02] [%clk 00:02:56]} Qe7 {[%emt 00:00:07] [%clk 00:02:43]} 13. d5
{[%emt 00:00:08] [%clk 00:02:50]} e5 {[%emt 00:00:27] [%clk 00:02:18]} 14. Nd2
{[%emt 00:00:09] [%clk 00:02:43]} Nxd2 {[%emt 00:00:06] [%clk 00:02:14]} 15.
Qxd2 {[%emt 00:00:02] [%clk 00:02:43]} a5 {[%emt 00:00:04] [%clk 00:02:12]} 16.
f4 {[%emt 00:00:06] [%clk 00:02:40]} Nf6 {[%emt 00:00:18] [%clk 00:01:55]} 17.
Bd3 {[%emt 00:00:27] [%clk 00:02:15]} e4 {[%emt 00:00:08] [%clk 00:01:49]} 18.
Be2 {[%emt 00:00:02] [%clk 00:02:15]} axb4 {[%emt 00:00:16] [%clk 00:01:35]} 19.
axb4 {[%emt 00:00:01] [%clk 00:02:16]} b5 {[%emt 00:00:02] [%clk 00:01:35]} 20.
cxb5 {[%emt 00:00:14] [%clk 00:02:04]} Kh8 {[%emt 00:00:02] [%clk 00:01:35]} 21.
Bc4 {[%emt 00:00:12] [%clk 00:01:54]} Qf7 {[%emt 00:00:07] [%clk 00:01:30]} 22.
Rfd1 {[%emt 00:00:10] [%clk 00:01:46]} h6 {[%emt 00:00:12] [%clk 00:01:20]} 23.
Ra5 {[%emt 00:00:06] [%clk 00:01:42]} Nd7 {[%emt 00:00:04] [%clk 00:01:18]} 24.
Bb3 {[%emt 00:00:16] [%clk 00:01:27]} Nb6 {[%emt 00:00:03] [%clk 00:01:17]} 25.
Qd4 {[%emt 00:00:20] [%clk 00:01:09]} Rg8 {[%emt 00:00:05] [%clk 00:01:14]} 26.
Qd2 {[%emt 00:00:30] [%clk 00:00:41]} Kh7 {[%emt 00:00:03] [%clk 00:01:13]} 27.
g3 {[%emt 00:00:10] [%clk 00:00:34]} g5 {[%emt 00:00:13] [%clk 00:01:01]} 28.
fxg5 {[%emt 00:00:05] [%clk 00:00:31]} hxg5 {[%emt 00:00:04] [%clk 00:00:59]}
29. Qg2 {[%emt 00:00:15] [%clk 00:00:19]} Bxd5 {[%emt 00:00:08] [%clk 00:00:53]}
30. Rxd5 {[%emt 00:00:05] [%clk 00:00:16]} Nxd5 {[%emt 00:00:01] [%clk
00:00:53]} 31. Qd2 {[%emt 00:00:01] [%clk 00:00:18]} f4 {[%emt 00:00:09] [%clk
00:00:46]} 32. Bxd5 {[%emt 00:00:06] [%clk 00:00:14]} fxe3 {[%emt 00:00:05]
[%clk 00:00:44]} 33. Bxe4+ {[%emt 00:00:07] [%clk 00:00:10]} Kh6 {[%emt
00:00:04] [%clk 00:00:42]} 34. Qxe3 {[%emt 00:00:02] [%clk 00:00:10]} Rgf8
{[%emt 00:00:04] [%clk 00:00:40]} 35. Bg2 {[%emt 00:00:08] [%clk 00:00:04]} Rae8
{[%emt 00:00:02] [%clk 00:00:40]} 36. Qd2 {[%emt 00:00:01] [%clk 00:00:04]} Qf5
{[%emt 00:00:07] [%clk 00:00:34]} 37. h4 {[%emt 00:00:01] [%clk 00:00:05]} Rg8
{[%emt 00:00:06] [%clk 00:00:30]} 38. b6 {[%clk 00:00:06]} Qb1+ {[%emt 00:00:03]
[%clk 00:00:29]} 39. Kh2 {[%clk 00:00:08]} c5 {[%emt 00:00:06] [%clk 00:00:25]}
40. bxc5 {[%emt 00:00:05] [%clk 00:00:05]} Kh7 {[%emt 00:00:06] [%clk 00:00:20]}
41. cxd6 {[%emt 00:00:02] [%clk 00:00:05]} gxh4 {[%emt 00:00:02] [%clk
00:00:20]} 42. Rh5+ {[%emt 00:00:01] [%clk 00:00:06]} Kg6 {[%emt 00:00:02] [%clk
00:00:20]} 43. Qg5+ {[%emt 00:00:01] [%clk 00:00:07]} 1-0

[Site "Europe Echecs"]

[Event "Championnat d'Europe de Blitz"]
[Date "2024.12.09"]
[White "Saric, Ante"]
[Black "Herega, Nejc"]
[WhiteElo "2482"]
[BlackElo "2249"]
[Round "5.29"]
[Result "0-1"]
[TimeControl "180+2"]

1. Nf3 {[%clk 00:03:03]} d5 {[%emt 00:00:03] [%clk 00:03:02]} 2. g3 {[%emt
00:00:01] [%clk 00:03:04]} Nf6 {[%emt 00:00:02] [%clk 00:03:02]} 3. Bg2 {[%emt
00:00:01] [%clk 00:03:05]} g6 {[%emt 00:00:02] [%clk 00:03:02]} 4. b3 {[%emt
00:00:01] [%clk 00:03:06]} Bg7 {[%emt 00:00:01] [%clk 00:03:02]} 5. Bb2 {[%emt
00:00:01] [%clk 00:03:08]} c5 {[%emt 00:00:05] [%clk 00:02:58]} 6. O-O {[%emt
00:00:03] [%clk 00:03:06]} Nc6 {[%emt 00:00:04] [%clk 00:02:57]} 7. Ne5 {[%emt
00:00:01] [%clk 00:03:07]} Nxe5 {[%emt 00:00:11] [%clk 00:02:48]} 8. Bxe5 {[%clk
00:03:08]} O-O {[%emt 00:00:01] [%clk 00:02:49]} 9. c4 {[%emt 00:00:09] [%clk
00:03:02]} dxc4 {[%emt 00:00:37] [%clk 00:02:13]} 10. bxc4 {[%emt 00:00:03]
[%clk 00:03:01]} Nd7 {[%clk 00:02:15]} 11. Bxg7 {[%emt 00:00:03] [%clk
00:03:01]} Kxg7 {[%clk 00:02:16]} 12. Nc3 {[%emt 00:00:02] [%clk 00:03:02]} Nf6
{[%emt 00:00:02] [%clk 00:02:16]} 13. Rb1 {[%emt 00:00:02] [%clk 00:03:02]} Rb8
{[%emt 00:00:05] [%clk 00:02:12]} 14. d3 {[%emt 00:00:13] [%clk 00:02:50]} b6
{[%emt 00:00:02] [%clk 00:02:12]} 15. a4 {[%clk 00:02:51]} Bb7 {[%emt 00:00:11]
[%clk 00:02:03]} 16. Bxb7 {[%emt 00:00:04] [%clk 00:02:50]} Rxb7 {[%clk
00:02:05]} 17. a5 {[%clk 00:02:51]} Qd7 {[%emt 00:00:03] [%clk 00:02:03]} 18.
Qa4 {[%emt 00:00:17] [%clk 00:02:36]} Qe6 {[%emt 00:00:15] [%clk 00:01:50]} 19.
Rb2 {[%emt 00:00:23] [%clk 00:02:15]} h5 {[%emt 00:00:10] [%clk 00:01:43]} 20.
h4 {[%emt 00:00:28] [%clk 00:01:49]} Rc8 {[%emt 00:00:16] [%clk 00:01:28]} 21.
Kg2 {[%emt 00:00:05] [%clk 00:01:46]} Qe5 {[%emt 00:00:02] [%clk 00:01:29]} 22.
Qc2 {[%emt 00:00:06] [%clk 00:01:41]} Rc6 {[%emt 00:00:10] [%clk 00:01:21]} 23.
Nb5 {[%emt 00:00:20] [%clk 00:01:24]} Kh7 {[%emt 00:00:22] [%clk 00:01:01]} 24.
Qc3 {[%emt 00:00:07] [%clk 00:01:19]} Qf5 {[%emt 00:00:01] [%clk 00:01:02]} 25.
Qd2 {[%emt 00:00:09] [%clk 00:01:12]} Qe5 {[%emt 00:00:08] [%clk 00:00:56]} 26.
Rfb1 {[%emt 00:00:06] [%clk 00:01:08]} bxa5 {[%emt 00:00:07] [%clk 00:00:51]}
27. Nc3 {[%emt 00:00:32] [%clk 00:00:37]} Rb4 {[%emt 00:00:05] [%clk 00:00:49]}
28. Na2 {[%emt 00:00:07] [%clk 00:00:32]} Rbb6 {[%emt 00:00:05] [%clk 00:00:45]}
29. Rb5 {[%emt 00:00:05] [%clk 00:00:29]} a4 {[%emt 00:00:02] [%clk 00:00:45]}
30. Nc3 {[%emt 00:00:03] [%clk 00:00:28]} a3 {[%emt 00:00:05] [%clk 00:00:42]}
31. Na4 {[%clk 00:00:29]} Ra6 {[%emt 00:00:04] [%clk 00:00:40]} 32. Nc3 {[%clk
00:00:30]} Ng4 {[%emt 00:00:06] [%clk 00:00:36]} 33. Rb7 {[%emt 00:00:08] [%clk
00:00:25]} Rf6 {[%emt 00:00:04] [%clk 00:00:34]} 34. Ne4 {[%emt 00:00:03] [%clk
00:00:23]} a2 {[%emt 00:00:05] [%clk 00:00:31]} 35. Nxf6+ {[%emt 00:00:10] [%clk
00:00:15]} Qxf6 {[%emt 00:00:01] [%clk 00:00:31]} 36. f3 {[%emt 00:00:02] [%clk
00:00:16]} axb1=Q {[%emt 00:00:08] [%clk 00:00:25]} 37. Rxb1 {[%clk 00:00:17]}
Ne5 {[%emt 00:00:03] [%clk 00:00:24]} 38. Rb7 {[%emt 00:00:02] [%clk 00:00:17]}
Nc6 {[%emt 00:00:04] [%clk 00:00:22]} 39. Qe3 {[%emt 00:00:03] [%clk 00:00:16]}
Nd4 {[%emt 00:00:06] [%clk 00:00:17]} 40. Qxe7 {[%emt 00:00:06] [%clk 00:00:12]}
Qxe7 {[%emt 00:00:04] [%clk 00:00:14]} 41. Rxe7 {[%emt 00:00:01] [%clk
00:00:13]} Kg7 {[%emt 00:00:03] [%clk 00:00:13]} 42. Kf2 {[%emt 00:00:07] [%clk
00:00:08]} Ra2 {[%emt 00:00:03] [%clk 00:00:12]} 43. Re5 {[%emt 00:00:04] [%clk
00:00:07]} a5 {[%emt 00:00:01] [%clk 00:00:13]} 44. Rxc5 {[%emt 00:00:02] [%clk
00:00:07]} Nxe2 {[%emt 00:00:02] [%clk 00:00:14]} 45. Rc8 {[%emt 00:00:03] [%clk
00:00:05]} a4 {[%emt 00:00:02] [%clk 00:00:14]} 46. Ra8 {[%clk 00:00:06]} a3
{[%emt 00:00:03] [%clk 00:00:14]} 47. c5 {[%emt 00:00:02] [%clk 00:00:06]} Nd4+
{[%emt 00:00:05] [%clk 00:00:10]} 48. Ke3 {[%emt 00:00:01] [%clk 00:00:07]} Nb5
{[%emt 00:00:02] [%clk 00:00:10]} 49. Ra5 {[%emt 00:00:03] [%clk 00:00:06]} Rb2
{[%emt 00:00:02] [%clk 00:00:10]} 50. c6 {[%clk 00:00:08]} a2 {[%emt 00:00:02]
[%clk 00:00:11]} 51. d4 {[%emt 00:00:01] [%clk 00:00:09]} Rb3+ {[%emt 00:00:06]
[%clk 00:00:07]} 52. Ke4 {[%emt 00:00:01] [%clk 00:00:09]} Ra3 {[%emt 00:00:03]
[%clk 00:00:06]} 53. Rxa3 {[%emt 00:00:03] [%clk 00:00:09]} Nxa3 {[%clk
00:00:07]} 54. c7 {[%clk 00:00:10]} Nc4 {[%emt 00:00:02] [%clk 00:00:07]} 55.
Kd5 {[%emt 00:00:06] [%clk 00:00:07]} a1=Q {[%emt 00:00:03] [%clk 00:00:06]} 0-1

[Site "Europe Echecs"]

[Event "Championnat d'Europe de Blitz"]
[Date "2024.12.09"]
[White "Denk, Adolf"]
[Black "Janik, Igor"]
[WhiteElo "2113"]
[BlackElo "2515"]
[Round "5.30"]
[Result "0-1"]
[TimeControl "180+2"]

1. c4 {[%emt 00:16:24] [%clk 00:03:04]} g6 {[%emt 00:00:02] [%clk 00:03:03]} 2.
g3 {[%clk 00:03:04]} Bg7 {[%emt 00:00:01] [%clk 00:03:04]} 3. Bg2 {[%clk
00:03:05]} c6 {[%emt 00:00:02] [%clk 00:03:04]} 4. Nc3 {[%emt 00:00:02] [%clk
00:03:05]} Nf6 {[%emt 00:00:03] [%clk 00:03:03]} 5. d4 {[%emt 00:00:07] [%clk
00:03:00]} d5 {[%emt 00:00:01] [%clk 00:03:04]} 6. cxd5 {[%emt 00:00:02] [%clk
00:03:01]} cxd5 {[%emt 00:00:01] [%clk 00:03:04]} 7. Nf3 {[%clk 00:03:02]} O-O
{[%emt 00:00:02] [%clk 00:03:05]} 8. Ne5 {[%emt 00:00:02] [%clk 00:03:01]} e6
{[%emt 00:00:01] [%clk 00:03:06]} 9. O-O {[%emt 00:00:02] [%clk 00:03:02]} Nfd7
{[%clk 00:03:07]} 10. Nxd7 {[%emt 00:00:08] [%clk 00:02:55]} Bxd7 {[%emt
00:00:04] [%clk 00:03:05]} 11. b3 {[%emt 00:00:15] [%clk 00:02:42]} b5 {[%emt
00:00:20] [%clk 00:02:48]} 12. a3 {[%emt 00:00:16] [%clk 00:02:28]} Qb6 {[%emt
00:00:02] [%clk 00:02:48]} 13. e3 {[%emt 00:00:03] [%clk 00:02:27]} Rc8 {[%emt
00:00:01] [%clk 00:02:48]} 14. Bb2 {[%emt 00:00:01] [%clk 00:02:28]} Nc6 {[%emt
00:00:09] [%clk 00:02:41]} 15. Qd2 {[%emt 00:00:07] [%clk 00:02:24]} Na5 {[%emt
00:00:06] [%clk 00:02:37]} 16. Qd1 {[%emt 00:00:07] [%clk 00:02:18]} b4 {[%emt
00:00:15] [%clk 00:02:24]} 17. axb4 {[%emt 00:00:19] [%clk 00:02:01]} Qxb4
{[%emt 00:00:01] [%clk 00:02:25]} 18. Ne2 {[%emt 00:00:29] [%clk 00:01:33]} Qxb3
{[%emt 00:00:19] [%clk 00:02:09]} 19. Rxa5 {[%emt 00:00:08] [%clk 00:01:27]}
Qxb2 {[%emt 00:00:01] [%clk 00:02:10]} 20. Nf4 {[%emt 00:00:04] [%clk 00:01:25]}
Qb6 {[%emt 00:00:12] [%clk 00:02:00]} 21. Qa1 {[%emt 00:00:03] [%clk 00:01:23]}
Rc7 {[%emt 00:00:15] [%clk 00:01:46]} 22. Rb1 {[%emt 00:00:02] [%clk 00:01:24]}
Qd6 {[%emt 00:00:05] [%clk 00:01:43]} 23. Nd3 {[%emt 00:00:02] [%clk 00:01:24]}
Bc8 {[%emt 00:00:13] [%clk 00:01:33]} 24. Nc5 {[%emt 00:00:03] [%clk 00:01:22]}
Bf8 {[%emt 00:00:03] [%clk 00:01:31]} 25. Rb3 {[%emt 00:00:05] [%clk 00:01:19]}
Qd8 {[%emt 00:00:04] [%clk 00:01:29]} 26. Rc3 {[%emt 00:00:07] [%clk 00:01:14]}
Bxc5 {[%emt 00:00:03] [%clk 00:01:29]} 27. dxc5 {[%emt 00:00:03] [%clk
00:01:13]} Bd7 {[%emt 00:00:10] [%clk 00:01:20]} 28. h4 {[%emt 00:00:04] [%clk
00:01:11]} Qf6 {[%emt 00:00:12] [%clk 00:01:10]} 29. Qc1 {[%emt 00:00:08] [%clk
00:01:05]} Bc6 {[%emt 00:00:04] [%clk 00:01:09]} 30. Rca3 {[%emt 00:00:04] [%clk
00:01:03]} Qe7 {[%emt 00:00:05] [%clk 00:01:06]} 31. Qa1 {[%emt 00:00:02] [%clk
00:01:03]} Be8 {[%emt 00:00:05] [%clk 00:01:03]} 32. Rc3 {[%emt 00:00:04] [%clk
00:01:00]} Rac8 {[%emt 00:00:01] [%clk 00:01:04]} 33. Qa3 {[%emt 00:00:02] [%clk
00:01:00]} f6 {[%emt 00:00:33] [%clk 00:00:33]} 34. Qb4 {[%emt 00:00:02] [%clk
00:01:00]} Bf7 {[%emt 00:00:01] [%clk 00:00:34]} 35. Qa3 {[%emt 00:00:08] [%clk
00:00:54]} e5 {[%clk 00:00:35]} 36. Qc1 {[%emt 00:00:07] [%clk 00:00:49]} d4
{[%emt 00:00:08] [%clk 00:00:30]} 37. exd4 {[%emt 00:00:04] [%clk 00:00:47]}
exd4 {[%clk 00:00:31]} 38. Rc2 {[%emt 00:00:04] [%clk 00:00:45]} Bb3 {[%emt
00:00:05] [%clk 00:00:28]} 39. Rb2 {[%emt 00:00:05] [%clk 00:00:43]} Rxc5 {[%emt
00:00:05] [%clk 00:00:25]} 40. Rxc5 {[%emt 00:00:03] [%clk 00:00:42]} Rxc5
{[%emt 00:00:01] [%clk 00:00:27]} 41. Qf4 {[%emt 00:00:04] [%clk 00:00:39]} Bf7
{[%emt 00:00:06] [%clk 00:00:23]} 42. Qxd4 {[%emt 00:00:02] [%clk 00:00:39]} Kg7
{[%emt 00:00:03] [%clk 00:00:22]} 43. Rb7 {[%emt 00:00:03] [%clk 00:00:39]} Rc7
{[%clk 00:00:24]} 44. Rb2 {[%emt 00:00:04] [%clk 00:00:36]} a5 {[%emt 00:00:06]
[%clk 00:00:20]} 45. Bf3 {[%clk 00:00:37]} Ra7 {[%emt 00:00:02] [%clk 00:00:21]}
46. h5 {[%emt 00:00:01] [%clk 00:00:38]} a4 {[%emt 00:00:07] [%clk 00:00:16]}
47. g4 {[%emt 00:00:01] [%clk 00:00:38]} a3 {[%emt 00:00:02] [%clk 00:00:16]}
48. Rb1 {[%emt 00:00:01] [%clk 00:00:39]} a2 {[%emt 00:00:01] [%clk 00:00:17]}
49. Ra1 {[%clk 00:00:40]} Qe5 {[%emt 00:00:04] [%clk 00:00:15]} 50. Qd1 {[%emt
00:00:03] [%clk 00:00:39]} Ra3 {[%emt 00:00:03] [%clk 00:00:15]} 51. h6+ {[%emt
00:00:02] [%clk 00:00:38]} Kxh6 {[%emt 00:00:04] [%clk 00:00:13]} 52. Kg2 {[%emt
00:00:04] [%clk 00:00:37]} Kg7 {[%emt 00:00:02] [%clk 00:00:13]} 53. Qc1 {[%clk
00:00:38]} Qc3 {[%emt 00:00:05] [%clk 00:00:10]} 54. Qd1 {[%emt 00:00:02] [%clk
00:00:37]} g5 {[%emt 00:00:03] [%clk 00:00:09]} 55. Rc1 {[%emt 00:00:01] [%clk
00:00:38]} Qxc1 {[%emt 00:00:01] [%clk 00:00:10]} 56. Qxc1 {[%clk 00:00:39]}
a1=Q {[%emt 00:00:01]} 57. Qc7 {[%clk 00:00:40]} Qc3 {[%emt 00:00:02] [%clk
00:00:11]} 58. Qe7 {[%clk 00:00:41]} Qxf3+ {[%emt 00:00:01] [%clk 00:00:12]} 59.
Kg1 {[%clk 00:00:43]} Ra1+ {[%emt 00:00:01] [%clk 00:00:13]} 0-1

[Site "Europe Echecs"]

[Event "Championnat d'Europe de Blitz"]
[Date "2024.12.09"]
[White "Georgiev, Kiril"]
[Black "Upleger, Martin"]
[WhiteElo "2537"]
[BlackElo "2297"]
[Round "5.31"]
[Result "0-1"]
[TimeControl "180+2"]

1. d4 {[%emt 00:00:04] [%clk 00:02:59]} Nf6 {[%emt 00:00:01] [%clk 00:03:03]} 2.
Nf3 {[%emt 00:00:01] [%clk 00:02:59]} b6 {[%emt 00:00:04] [%clk 00:03:02]} 3.
Bf4 {[%emt 00:00:06] [%clk 00:02:55]} Bb7 {[%emt 00:00:02] [%clk 00:03:02]} 4.
e3 {[%clk 00:02:56]} g6 {[%emt 00:00:02] [%clk 00:03:02]} 5. h3 {[%clk
00:02:57]} Bg7 {[%clk 00:03:04]} 6. Be2 {[%clk 00:02:58]} O-O {[%emt 00:00:01]
[%clk 00:03:04]} 7. O-O {[%clk 00:02:59]} d6 {[%emt 00:00:03] [%clk 00:03:04]}
8. c4 {[%emt 00:00:02] [%clk 00:02:59]} Nbd7 {[%emt 00:00:04] [%clk 00:03:02]}
9. Bh2 {[%emt 00:00:04] [%clk 00:02:56]} a6 {[%emt 00:00:07] [%clk 00:02:58]}
10. Nc3 {[%emt 00:00:02] [%clk 00:02:55]} Ne4 {[%emt 00:00:02] [%clk 00:02:58]}
11. Rc1 {[%emt 00:00:03] [%clk 00:02:54]} Nxc3 {[%emt 00:00:03] [%clk 00:02:57]}
12. bxc3 {[%emt 00:00:08] [%clk 00:02:48]} c5 {[%emt 00:00:05] [%clk 00:02:54]}
13. Nd2 {[%emt 00:00:04] [%clk 00:02:45]} Qc7 {[%emt 00:00:05] [%clk 00:02:51]}
14. a4 {[%emt 00:00:03] [%clk 00:02:45]} Rab8 {[%emt 00:00:01] [%clk 00:02:52]}
15. Qb3 {[%emt 00:00:04] [%clk 00:02:43]} Rfc8 {[%emt 00:00:27] [%clk 00:02:27]}
16. Rfd1 {[%emt 00:00:09] [%clk 00:02:35]} Nf6 {[%emt 00:00:18] [%clk 00:02:11]}
17. Bf1 {[%emt 00:00:05] [%clk 00:02:32]} Bc6 {[%emt 00:00:05] [%clk 00:02:09]}
18. Ra1 {[%emt 00:00:03] [%clk 00:02:31]} Ne4 {[%emt 00:00:26] [%clk 00:01:44]}
19. Nf3 {[%emt 00:00:03] [%clk 00:02:29]} Nf6 {[%emt 00:00:02] [%clk 00:01:45]}
20. Ne1 {[%clk 00:02:30]} Qd7 {[%emt 00:00:09] [%clk 00:01:39]} 21. Qc2 {[%emt
00:00:19] [%clk 00:02:12]} cxd4 {[%emt 00:00:14] [%clk 00:01:27]} 22. cxd4
{[%emt 00:00:05] [%clk 00:02:09]} b5 {[%emt 00:00:02] [%clk 00:01:27]} 23. axb5
{[%emt 00:00:10] [%clk 00:02:01]} axb5 {[%emt 00:00:01] [%clk 00:01:28]} 24. c5
{[%emt 00:00:07] [%clk 00:01:56]} b4 {[%emt 00:00:13] [%clk 00:01:17]} 25. Qb2
{[%emt 00:00:12] [%clk 00:01:46]} Bb5 {[%emt 00:00:17] [%clk 00:01:03]} 26. Nd3
{[%emt 00:00:19] [%clk 00:01:29]} Nd5 {[%emt 00:00:10] [%clk 00:00:56]} 27. Rdc1
{[%emt 00:00:05] [%clk 00:01:25]} Bxd3 {[%emt 00:00:05] [%clk 00:00:54]} 28.
Bxd3 {[%emt 00:00:02] [%clk 00:01:25]} Nc3 {[%emt 00:00:11] [%clk 00:00:44]} 29.
cxd6 {[%emt 00:00:07] [%clk 00:01:20]} exd6 {[%emt 00:00:02] [%clk 00:00:44]}
30. Qb3 {[%emt 00:00:14] [%clk 00:01:08]} Rb6 {[%emt 00:00:10] [%clk 00:00:36]}
31. Bg3 {[%emt 00:00:09] [%clk 00:01:01]} d5 {[%emt 00:00:08] [%clk 00:00:31]}
32. Kh2 {[%emt 00:00:06] [%clk 00:00:57]} Bf8 {[%emt 00:00:01] [%clk 00:00:32]}
33. Ra5 {[%emt 00:00:06] [%clk 00:00:52]} Be7 {[%emt 00:00:08] [%clk 00:00:28]}
34. Rca1 {[%emt 00:00:03] [%clk 00:00:50]} h5 {[%emt 00:00:02] [%clk 00:00:28]}
35. Ra7 {[%emt 00:00:04] [%clk 00:00:48]} Qe6 {[%emt 00:00:04] [%clk 00:00:26]}
36. Kg1 {[%emt 00:00:09] [%clk 00:00:41]} h4 {[%emt 00:00:04] [%clk 00:00:24]}
37. Bf4 {[%emt 00:00:02] [%clk 00:00:41]} Bd6 {[%emt 00:00:10] [%clk 00:00:17]}
38. Bg5 {[%emt 00:00:02] [%clk 00:00:39]} Rbc6 {[%emt 00:00:08] [%clk 00:00:11]}
39. Bxh4 {[%emt 00:00:05] [%clk 00:00:36]} Bf8 {[%emt 00:00:05] [%clk 00:00:09]}
40. Bg3 {[%emt 00:00:04] [%clk 00:00:33]} Bh6 {[%clk 00:00:10]} 41. Kh1 {[%emt
00:00:05] [%clk 00:00:30]} Rb6 {[%emt 00:00:03] [%clk 00:00:09]} 42. R7a6 {[%emt
00:00:03] [%clk 00:00:30]} Rcc6 {[%emt 00:00:03] [%clk 00:00:08]} 43. Rxb6
{[%emt 00:00:03] [%clk 00:00:28]} Rxb6 {[%clk 00:00:09]} 44. Be5 {[%emt
00:00:04] [%clk 00:00:26]} Bg7 {[%emt 00:00:01] [%clk 00:00:10]} 45. Ra8+ {[%emt
00:00:03] [%clk 00:00:25]} Kh7 {[%emt 00:00:01] [%clk 00:00:12]} 46. Bf4 {[%clk
00:00:26]} Bf6 {[%emt 00:00:05] [%clk 00:00:09]} 47. Rb8 {[%emt 00:00:03] [%clk
00:00:25]} Rxb8 {[%emt 00:00:03] [%clk 00:00:08]} 48. Bxb8 {[%emt 00:00:01]
[%clk 00:00:25]} Be7 {[%clk 00:00:09]} 49. Bf4 {[%emt 00:00:03] [%clk 00:00:24]}
Bd6 {[%emt 00:00:01] [%clk 00:00:10]} 50. Bg5 {[%emt 00:00:07] [%clk 00:00:19]}
Qd7 {[%emt 00:00:02] [%clk 00:00:10]} 51. Qb2 {[%emt 00:00:02] [%clk 00:00:19]}
Qa7 {[%emt 00:00:02] [%clk 00:00:11]} 52. Bf1 {[%emt 00:00:04] [%clk 00:00:17]}
Qa3 {[%emt 00:00:01] [%clk 00:00:12]} 53. Qc2 {[%emt 00:00:07] [%clk 00:00:12]}
Qa1 {[%emt 00:00:01] [%clk 00:00:13]} 54. Qd3 {[%emt 00:00:06] [%clk 00:00:08]}
Qe1 {[%emt 00:00:02] [%clk 00:00:13]} 55. Kg1 {[%emt 00:00:04] [%clk 00:00:06]}
b3 {[%emt 00:00:01] [%clk 00:00:14]} 56. e4 {[%emt 00:00:03] [%clk 00:00:04]} b2
{[%emt 00:00:01] [%clk 00:00:15]} 57. Bd2 {[%clk 00:00:05]} Qd1 {[%emt 00:00:03]
[%clk 00:00:14]} 58. Bxc3 {[%emt 00:00:02] [%clk 00:00:06]} b1=Q {[%emt
00:00:02]} 59. Qf3 {[%clk 00:00:07]} Qxf3 {[%emt 00:00:02] [%clk 00:00:14]} 60.
gxf3 {[%emt 00:00:01] [%clk 00:00:08]} dxe4 {[%clk 00:00:16]} 0-1

[Site "Europe Echecs"]